Cogmind - Beta 16.1 @@@ ROGUE MODE // 2026.04.19 @ 09:29:09 Player: Miles Result: Self-destructed Performance ------------- Evolutions (1) 500 Regions Visited (2) 400 Robots Destroyed (10) 50 Value Destroyed (197) 197 Prototype IDs (0) 0 Alien Tech Used (0) 0 Bonus (0) 0 TOTAL SCORE: 1147 Bonus ------- None Cogmind --------- Core Integrity 373/400 Matter 242/300 Energy 250/250 System Corruption 0% Temperature Cool (0) Movement Rolling (80) Location -9/Materials Parts ------- > --- POWER (1) -------- Ion Engine > --- PROPULSION (3) --- Wheel Wheel Wheel > --- UTILITY (3) ------ Small Storage Unit Improved Terrain Scanner Improved Propulsion Shielding > --- WEAPON (2) ------- Pulse Rifle Minigun > --- INVENTORY (8) ---- Light Ion Engine Aluminum Leg Wheel Cryofiber Web Minigun Minigun Grenade Launcher Mining Laser Peak State ------------ > --- POWER ------------ Ion Engine > --- PROPULSION ------- Wheel Wheel Wheel > --- UTILITY ---------- Small Storage Unit Improved Terrain Scanner Improved Propulsion Shielding > --- WEAPON ----------- Minigun Minigun > --- INVENTORY -------- Light Ion Engine Aluminum Leg Wheel Cryofiber Web Minigun Minigun Grenade Launcher Mining Laser [Rating: 18] Favorites ----------- Power Ion Engine Engine Ion Engine Propulsion Aluminum Leg Leg Aluminum Leg Wheel Wheel Utility Small Storage Unit Device Improved Terrain Scanner Storage Small Storage Unit Protection Improved Propulsion Shielding Weapon Assault Rifle Energy Gun EM Pulse Gun Ballistic Gun Assault Rifle Launcher Grenade Launcher Build | -11 -10 -9 ------- Run | Yrd Mat Mat Slots Evolved 2 | . . 2 Power . | . . . Propulsion 1 | . . 1 Utility 1 | . . 1 Weapon . | . . . Parts Attached 16 | 7 1 8 Power 1 | 1 . . Engine 1 | 1 . . Core . | . . . Reactor . | . . . Propulsion 5 | 2 . 3 Treads . | . . . Leg 2 | 2 . . Wheel 3 | . . 3 Hover . | . . . Flight . | . . . Utility 3 | 2 . 1 Device 1 | 1 . . Storage 1 | 1 . . Processor . | . . . Hackware . | . . . Protection 1 | . . 1 Artifact . | . . . Weapon 7 | 2 1 4 Energy Gun 2 | 1 . 1 Energy Cannon . | . . . Ballistic Gun 4 | 1 1 2 Ballistic Cannon . | . . . Launcher 1 | . . 1 Special Weapon . | . . . Impact Weapon . | . . . Slashing Weapon . | . . . Piercing Weapon . | . . . Special Melee Weapon . | . . . Unidentified Prototypes . | . . . Parts Lost . | . . . Power . | . . . Propulsion . | . . . Utility . | . . . Weapon . | . . . Highest Loss Streak . | . . . To Critical Strikes . | . . . Average Backups 6 | 4 7 7 Power . | . 1 1 Propulsion 3 | 2 4 2 Utility . | . . . Weapon 2 | . 2 3 Tool/Special . | . . . Unused Backups 9 | 1 1 7 Power 1 | . . 1 Propulsion 3 | 1 1 1 Utility 1 | . . 1 Weapon 4 | . . 4 Tool/Special . | . . . Average Slot Usage (%) 98 | . 100 95 Engine 12 | . 14 11 Leg 15 | . 28 . Wheel 14 | . . 31 Device 12 | . 14 11 Storage 12 | . 14 11 Protection 3 | . . 7 Energy Gun 4 | . 6 2 Ballistic Gun 20 | . 21 18 Peak Build Rating 18 | 9 9 18 Average Rating 10 | 5 8 16 On Entrance 6 | . 9 9 Avg Prop Armor Cover (%) . | . . . Naked Turns . | . . . Heaviest Build 19 | 15 15 19 Greatest Support 30 | 20 20 30 Greatest Overweight (x) 1 | 1 . . Average Overweight (x) . | . . . Largest Inventory Capacity 8 | 8 8 8 Average Capacity 7 | 6 8 8 Most Carried 8 | 8 8 8 Average Carried 7 | 4 7 7 Final Capacity 8 | 8 8 8 Final Carried 8 | 8 8 8 Class Distribution -------------------- 100% | Mutant Dominant Class ---------------- Mutant | -10/Materials Mutant | -9/Materials Resources | -11 -10 -9 ----------- Run | Yrd Mat Mat Matter Collected 413 | 201 46 166 Remotely . | . . . Salvage Created 305 | 93 46 166 Parts 27 | 12 6 9 Haulers Intercepted . | . . . Recyclers Shooed . | . . . Parts Field Recycled . | . . . Retrieved Matter . | . . . Parts Self-Destructed . | . . . Prevented . | . . . Parts Restored . | . . . Kills | -11 -10 -9 ------- Run | Yrd Mat Mat Combat Hostiles Destroyed 7 | . 3 4 Guns 7 | . 3 4 Classes Destroyed 5 | 2 1 2 Tunneler 2 | 2 . . Recycler 1 | 1 . . Swarmer 3 | . 3 . Grunt 3 | . . 3 Sentry 1 | . . 1 Best Kill Streak 3 | 2 3 3 Combat Bots Only 3 | . 3 3 Max Kills in Single Turn 1 | 1 1 1 Gunslinging . | . . . Exploded . | . . . Melee . | . . . Uniques/NPCs Destroyed . | . . . Combat | -11 -10 -9 -------- Run | Yrd Mat Mat Hostile Shots Fired 30 | . 15 15 Missed 6 | . 5 1 Hits 24 | . 10 14 Projectile 24 | . 10 14 Critical Strikes 2 | . . 2 Damage Taken 254 | . 79 175 Core 57 | . 30 27 Absorbed by Shields . | . . . Redirected to Shielding 24 | . . 24 Core Remaining (%) 94 | 100 88 . Volleys Fired 28 | 9 8 11 Largest 2 | 2 1 2 Hottest 88 | 60 20 88 Shots Fired 39 | 11 8 20 Gun 39 | 11 8 20 Cannon . | . . . Launcher . | . . . Special . | . . . Kinetic 32 | 9 8 15 Thermal 5 | . . 5 Explosive . | . . . Electromagnetic 2 | 2 . . Robot Hit Streak 9 | 2 3 9 Robot Miss Streak 2 | 2 2 2 Penetration Max . | . . . Secondary Targets 1 | . . 1 Max Gunslinging Chain 1 | . . 1 Shots Hit Robots 23 | 5 4 14 Core Hits 12 | 4 3 5 Critical Kills . | . . . Critical Parts Destroyed 1 | 1 . . Critical Strikes 1 | 1 . . Destroy 1 | 1 . . Melee Attacks . | . . . Impact . | . . . Slashing . | . . . Piercing . | . . . Sneak Attacks . | . . . Combat Hostiles . | . . . Follow-up Attacks . | . . . Damage Inflicted 348 | 59 50 239 Guns 348 | 59 50 239 Cannons . | . . . Explosions . | . . . Melee . | . . . Ramming . | . . . Kinetic 267 | 47 50 170 Thermal 69 | . . 69 Explosive . | . . . Electromagnetic 12 | 12 . . Impact . | . . . Slashing . | . . . Piercing . | . . . Highest Corruption . | . . . Average Corruption . | . . . Corruption Purged . | . . . Corruption Blocked . | . . . Overload Shots . | . . . Overflow Damage . | . . . Projectiles . | . . . Explosions . | . . . Melee . | . . . Knockbacks . | . . . Impact . | . . . Kinetic . | . . . Secondary . | . . . Self-Inflicted Damage . | . . . Shots . | . . . Rammed . | . . . Targets Rammed . | . . . Kicked . | . . . Crushed . | . . . Highest Temperature 140 | . . 140 Average Temperature 45 | . . 45 Received Heat Transfer 93 | . . 93 Siege Activations . | . . . Martial Activations . | . . . Shielding Activations . | . . . Robots Disrupted . | . . . Combat Hostiles . | . . . Robots Corrupted . | . . . Combat Hostiles . | . . . Parts Fried . | . . . Impact Corruptions . | . . . Robots Melted . | . . . Combat Hostiles . | . . . Parts Melted . | . . . Heat Transferred 148 | . . 148 Parts Sabotaged . | . . . Parts Stolen . | . . . Parts Stripped . | . . . Power Chain Reactions . | . . . Alert | -11 -10 -9 ------- Run | Yrd Mat Mat Maximum Alert Level . | . . . Low Security (%) 100 | 100 100 100 Level 1 . | . . . Level 2 . | . . . Level 3 . | . . . Level 4 . | . . . Level 5 . | . . . High Security . | . . . Max Security . | . . . Peak Influence 90 | 10 90 70 Initial 12 | . . 12 Average 24 | 1 39 22 Influence Increases 229 | 15 100 114 Destroy 0b10 Robot/C 140 | . 60 80 Destroy 0b10 Robot/NC 15 | 15 . . Destroy Leader 30 | . 10 20 Successful Hack 14 | . . 14 Lose Combat Pursuer 30 | . 30 . Influence Decreases 169 | 15 70 84 Entered New Map 18 | . . 18 Time Decay 151 | 15 70 66 Squads Dispatched 1 | . . 1 Investigation . | . . . Extermination . | . . . Reinforcement 1 | . . 1 Assault . | . . . Garrison . | . . . Intercept . | . . . Searches Triggered . | . . . Construction Impeded . | . . . Haulers Reinforced . | . . . Active Scanning Responses . | . . . Cargo Convoy Interrupts . | . . . Stealth | -11 -10 -9 --------- Run | Yrd Mat Mat Distress Signals . | . . . Communications Jammed . | . . . Distress Signals . | . . . Times Spotted 12 | . 6 6 Peak Tracking Total 3 | . 3 2 Tactical Retreats 1 | . 1 . Traps | -11 -10 -9 ------- Run | Yrd Mat Mat Traps Triggered . | . . . Indirectly . | . . . Trap Hack Attempts . | . . . Triggered . | . . . Disarmed . | . . . Reprogrammed . | . . . Reused . | . . . Traps Extracted . | . . . Installed . | . . . Triggered . | . . . Machines | -11 -10 -9 ---------- Run | Yrd Mat Mat Machines Disabled . | . . . Max in Single Turn . | . . . Machines Repaired . | . . . Machines Dismantled . | . . . Machines Sabotaged . | . . . Overloaded Fab Kills . | . . . Hacking | -11 -10 -9 --------- Run | Yrd Mat Mat Machines Accessed 2 | . . 2 Terminals 2 | . . 2 Fabricators . | . . . Repair Stations . | . . . Recycling Units . | . . . Scanalyzers . | . . . Garrison Access . | . . . Total Hacks 3 | . . 3 Successful 1 | . . 1 Failed 2 | . . 2 Catastrophic . | . . . Database Lockouts . | . . . Manual 3 | . . 3 Terminals 3 | . . 3 Fabricators . | . . . Repair Stations . | . . . Recycling Units . | . . . Scanalyzers . | . . . Garrison Access . | . . . Terminal Hacks . | . . . Fabricator Hacks . | . . . Repair Station Hacks . | . . . Recycling Unit Hacks . | . . . Scanalyzer . | . . . Garrison Access Hacks . | . . . Unauthorized Hacks 1 | . . 1 Terminals 1 | . . 1 Botnet 1 | . . 1 Fabricators . | . . . Repair Stations . | . . . Recycling Units . | . . . Scanalyzers . | . . . Garrison Access . | . . . Data Cores Recovered . | . . . Used . | . . . Hacking Detections 1 | . . 1 Full Trace Events . | . . . Feedback Events . | . . . Feedback Blocked . | . . . Robot Schematics Acquired . | . . . Robots Built . | . . . Authchips . | . . . Time . | . . . Total Robot Build Rating . | . . . Part Schematics Acquired . | . . . Parts Built . | . . . Authchips . | . . . Time . | . . . Total Part Build Rating . | . . . Part Studies Acquired . | . . . Parts Repaired . | . . . Time . | . . . Parts Recycled . | . . . Recycled Matter . | . . . Retrieved Matter . | . . . Retrieved Components . | . . . Parts Scanalyzed . | . . . Part Schematics Acquired . | . . . Parts Damaged . | . . . Bothacking | -11 -10 -9 ------------ Run | Yrd Mat Mat Used RIF Installer . | . . . Robots Hacked . | . . . Non-combat . | . . . Combat . | . . . Robot Hacks Applied . | . . . Relay Couplers Released . | . . . Fabnet Peak Effective % . | . . . Robots Rewired . | . . . Allies Hacked . | . . . Hacks Repelled . | . . . Allies | -11 -10 -9 -------- Run | Yrd Mat Mat Total Allies . | . . . Largest Group . | . . . Highest-Rated Group . | . . . Highest-Rated Ally . | . . . Total Orders . | . . . Ally Attacks . | . . . Total Damage . | . . . Kills . | . . . Allies Corrupted . | . . . Allies Melted . | . . . Intel | -11 -10 -9 ------- Run | Yrd Mat Mat Active Infowar (turns) 376 | 31 193 152 Terrain 376 | 31 193 152 Robot Analysis Total . | . . . Derelict Logs Recovered . | . . . Drone Launches . | . . . Drone Recoveries . | . . . Exploration | -11 -10 -9 ------------- Run | Yrd Mat Mat Turns Passed 465 | 120 193 152 Spaces Moved 313 | 71 143 99 Core 18 | 18 . . Treads . | . . . Legs 196 | 53 143 . Wheels 99 | . . 99 Hover . | . . . Flight . | . . . Fastest Speed 50 | 50 120 80 Average Speed 104 | 109 120 80 Slowest Speed 120 | 120 120 80 Overloaded Moves . | . . . Propulsion Burnouts . | . . . Robots Hopped . | . . . Potential Cave-ins . | . . . Cave-ins Triggered . | . . . Exploration Rate (%) 12 | 4 26 6 Regions Visited 2 Branch Regions . Pre-discovered Areas . | . . . Known Exits Taken . | . . . Unknown Exits Taken 2 | 1 1 . Scrap Searched . | . . . Spaces Dug . | . . . Terrain Destroyed . | . . . Melee . | . . . Projectile . | . . . AOE . | . . . Terrain Rammed . | . . . Walls Destroyed . | . . . Machines Disabled . | . . . Actions | -11 -10 -9 --------- Run | Yrd Mat Mat Total 415 | 103 157 155 Wait 29 | . 3 26 Move 311 | 70 142 99 Hop . | . . . Pick Up 22 | 16 1 5 Fast Attach 2 | . 1 1 Attach 8 | 7 . 1 Detach . | . . . Swap 6 | . . 6 Drop 9 | 1 2 6 Fire 28 | 9 8 11 Melee . | . . . Ram . | . . . Kick . | . . . Crush . | . . . Escape Stasis . | . . . Rewire . | . . . Trap . | . . . Miscellaneous . | . . . Route ------- -11/Scrapyard -10/Materials (discovered 2 exits: *Mat / [*Min]) -9/Materials History --------- Turn | Location | Event 12 | -11/Scrapyard | Discovered new exit (range 16) 121 | -11/Scrapyard | Entered Materials 171 | -10/Materials | Discovered new exit (range 12) 229 | -10/Materials | Discovered new exit (range 16) 300 | -10/Materials | Build established: Mutant 314 | -10/Materials | Entered another Materials area 314 | -9/Materials | Evolved 2 slots: Propulsion x1, Utility x1 466 | -9/Materials | Self-destructed Last Messages --------------- Awaiting botnet instructions. 00357_ Acquired Imp. Propulsion Shielding. 00359_ Dropped Minigun. 00360_ Acquired Pulse Rifle. 00363_ ALERT: Hostiles spotted, dispatching reinforcements to Terminal M006. 00369_ Critical hit (Burn: +37). 00382_ Y-45 Defender destroyed. 00385_ Acquired 51 matter. 00391_ Connecting with Terminal... 00424_ G-34 Mercenary destroyed. 00424_ Switching to secondary target: G-34 Mercenary. 00435_ G-34 Mercenary destroyed. 00446_ Acquired 46 matter. 00446_ K-01 Serf collects debris. 00447_ Acquired 37 matter. 00448_ K-01 Serf collects debris. 00455_ Acquired 32 matter. 00456_ K-01 Serf collects debris. Map ----- +----------------------------------------------------+ | ?????????????????????????????????????????????????? | | ?????????????????????????????????????????????????? | | ?????????????????????????????????????????????????? | | ?????????????????????????????????????????????????? | | ?????????????????????????????????????????????????? | | ?????????????????????????????????????????????????? | | ?????????????????????????????????????????????????? | | ?????????????????????????????????????????????????? | | ?????????????????????????????????????????????????? | | ????????????????????? ?????"???"?????????????????? | | ????????????????? ????? ??????????#??????????????? | | ???????????????? ????????? ????????????????????? | | ??????????????? ???????????????????#?????????? | | ???????????????? ?????? ? ???????????????????? | | ???????????????? ?#????????????????????#???? | | ??????????????????"" ?# ???????????????????????? | | ?????????????????""" ########????#????????????? | | ??????????? ? """ #????????? ? ????? | | ????????????? ##????????????????? | | ????????????? ! #?????????????????? | | ??????????????#???#"Y"###### = ##??#????#?????#??? | | ?????????????????#????#????#* #???#????????#????? | | ????????????????############= #???????#?#???????? | | ????????????????# ## ! ##??#?#?????????#?? | | ????????????????# # = ###############??? | | ????????????????# @# T" #??? | | ????????"???????# [+ " #??? | | ????????????????# =#= = #??? | | ????????????????# "T" # ######## #??? | | ????????????????# """ ### ####?#?# #??? | | ????????????????# #?# #???#!![[!!#??# | | ????????????????######## ##?#[ [![[#???#! [ !!#??? | | ????????????????????#??####?#[[!![[##??########??? | | ?????????????????#??????????########??#??????????? | | ???????????????????????????????????#???????????#?? | | ?????????????????????????#???#?????#?????????????? | | ?????????????????????????????????????????????????# | | ???????????????????#???#?#???????##???#??????????? | | ????????????????????????????#???????????????????#? | | ????????????????????????????????????????#????????? | | | | | | | | | | | | | | | | | | | | | +----------------------------------------------------+ Best States ------------- Heat Dissipation 28 Energy Generation 10 Energy Capacity 250 Matter Stores 242 Matter Capacity 300 Sight Range 16 Terrain Scan Range 16 Terrain Scan Density 10 Propulsion Shielding 66 Evasion (%) 55 Item Schematics ----------------- None Robot Schematics ------------------ None Fabricated ------------ Nothing Repaired ---------- Nothing Studied --------- None Alien Tech Used ----------------- None Achievements -------------- None Challenges ------------ None Game ------ Seed ThrowingZeronetJets Manual? 0 Play Time 00:05:51 Cumulative 37.3 hours Start 2026.04.18 @ 10:48:27 End 2026.04.19 @ 09:29:09 Sessions 2 Manual Loads 0 Difficulty Rogue Special Mode None Game No. 74 Rogue 74 Adventurer 0 Explorer 0 Win Type - Total 0 Types 0/0/0/0/0/0/0/0/0/0 Lore% 11 Gallery% 27 Achievement% 18 Wizard Run 0 Options --------- Layout 1 ASCII 0 Keyboard 0 Movement Mouse Keybinds 0 Fullscreen 1 Font 24/Smallcaps Map View 50x35 Zoom Use 0% Tactical HUD 1 Map Filters NONE Filters NONE Steam 1 RUN: 64c3408e-bb23-40af-972e-5a2f76aad4b5